Workbook

Sheet Fractional % To Decimal
A1: Fractional % | B1: to | C1: Decimal
A2: 0.003
A3: 0.007
A4: 0.0025

Sheet Fractional % To Decimal (an)
A1: Fractional % | B1: to | C1: Decimal
A2: 0.003 | C2: =3/10/100 -> 0.003
A3: 0.007 | C3: =7/10/100 -> 0.007
A4: 0.0025 | C4: =1/4/100 -> 0.0025

Sheet Topics
A1: Earlier Formulas
A2: New Formulas for Section 3.5
A3: Amount Of Change
A4: Rate Of Change
A5: Increase/Decrease Problems
A6: Memory Trick

Sheet Terms (hidden)
A1: Translate words into math symbols
A2: Add | B2: Subtract | C2: Multiply | D2: Division | E2: Equal | F2: Powers
A3: plus | B3: less | C3: product | D3: divided by | E3: is | F3: squared
A4: more | B4: subtract | C4: double | D4: divided into | E4: the same as | F4: raised to
A5: more than | B5: subtracted from | C5: triple | D5: quotient | E5: equals | F5: to the second power
A6: added to | B6: difference | C6: times | D6: goes into | E6: equal to | F6: cubed
A7: increased by | B7: less than | C7: of | D7: divide | E7: yields | F7: to the 12th power
A8: sum | B8: fewer | C8: twice | D8: divided equally | E8: results in
A9: total | B9: decreased by | C9: twice as much | D9: per | E9: are
A10: sum of | B10: loss of
A11: increase of | B11: minus
A12: gain of | B12: take away
A13: add | B13: reduced by

Sheet LearnIncreaseDecrease
A1: Remember Basic Percent Formula: Part = Base*Rate
A2: Now remember an example from earlier in the class:
A3: If last year’s sales were $500,000 and this year’s sales were 110% of last year’s sales, how much are this year’s sales?
A4: Translate into words = (This Year's Sales) = (This year's sales as a % of Last year's sales) * (Last Year's Sales)
A5: Rate * Base = Part
A7: Last Year's Sales
A8: This year’s sales as a % of last year’s sales
A9: This Year's Sales
A11: This is called a Increase Problem
A13: If last year’s sales were $500,000 and this year’s sales were 90% of last year’s sales, how much are this year’s sales?
A16: Last Year's Sales
A17: This year’s sales as a % of last year’s sales
A18: This Year's Sales
A20: This is called a Decrease Problem
A22: In both cases we used the formula: Part = Base * Rate
A23: When we have Increase/Decrease situations, it may be more helpful to use these formulas:
A24: **Given that: Base = Beg and Part = End ==>>
B25: same with diff words | C25: Part = Base*Rate
B26: same with diff words | C26: Rate = Part/Base
B27: same with diff words | C27: Base = Part/Rate
A29: Example 1: Rate of Change / Increase Problem
A30: Last Year's Sales | B30: 500000
A31: This Year's Sales | B31: 550000
A32: Rate
A33: Rate Shown as a %
A34: Amount of Change | E34: Notice: Because # is positive, we went up (increase)
A35: Rate of Change
A36: ROC as a %
A37: Rate of Change | E37: **Formula is often used in Finance and Statistics
A38: Rate of Change
A40: Drawing Pictures is GOOD!!!
B50: or | E50: or
A53: Try it: | C53: Rate = 1 + ROC
A55: Example 2: Rate of Change / Decrease Problem
A56: Last Year's Sales | B56: 500000 | E56: Check End:
A57: This Year's Sales | B57: 450000
A58: Rate
A59: Rate as a %
A60: Amount of Change | E60: Notice because # is negative, we went down (decrease)
A61: Rate of Change
A62: ROC as a %
A63: Rate of Change
A64: Rate of Change
A66: Drawing Pictures is GOOD!!!
A72: Check End =
G73: Check Rate:
G74: =B57/B56 -> 0.9
B75: Beg + AOC Always = End | E75: Rate Always = 100% + ROC
A77: Try it: | C77: Rate = 1 + ROC | E77: **Works for either Increase or Decrease
A79: Calculating End
A80: Method 1
A81: Last Year's Sales | B81: 500000 | C81: Beg | D81: Base
A82: Rate of Change | B82: 0.1 | C82: ROC
A83: Amount of Change | C83: AOC
A84: This Year's Sales | C84: End
A85: Method 2
A86: Last Year's Sales | B86: 500000 | C86: Beg
A87: Rate of Change | B87: 0.1 | C87: ROC
A88: Rate | C88: 1 + ROC
A89: This Year's Sales | C89: End | D89: Beg*Rate
A90: Method 3
A91: Last Year's Sales | B91: 500000 | C91: Beg
A92: Rate of Change | B92: 0.1 | C92: ROC
A93: This Year's Sales | C93: End
A95: Method 3
A96: Last Year's Sales | B96: 500000 | C96: Beg
A97: Rate of Change | B97: -0.1 | C97: ROC
A98: This Year's Sales | C98: End | D98: End = Beg * (1+ROC)

Sheet LearnIncreaseDecrease (an)
A1: Remember Basic Percent Formula: Part = Base*Rate
A2: Now remember an example from earlier in the class:
A3: If last year’s sales were $500,000 and this year’s sales were 110% of last year’s sales, how much are this year’s sales?
A4: Translate into words = (This Year's Sales) = (This year's sales as a % of Last year's sales) * (Last Year's Sales)
A5: Rate * Base = Part
A7: Last Year's Sales | B7: 500000 | C7: Begin Amount | D7: Base | E7: Beg
A8: This year’s sales as a % of last year’s sales | B8: 1.1 | C8: Rate | D8: Rate
A9: This Year's Sales | B9: =B7*B8 -> 550000 | C9: End Amount | D9: Part | E9: End
A11: This is called a Increase Problem
A13: If last year’s sales were $500,000 and this year’s sales were 90% of last year’s sales, how much are this year’s sales?
A16: Last Year's Sales | B16: 500000 | C16: Beg
A17: This year’s sales as a % of last year’s sales | B17: 0.9 | C17: Rate
A18: This Year's Sales | B18: =B17*B16 -> 450000 | C18: End
A20: This is called a Decrease Problem
A22: In both cases we used the formula: Part = Base * Rate
A23: When we have Increase/Decrease situations, it may be more helpful to use these formulas:
A24: **Given that: Base = Beg and Part = End ==>>
A25: End = Beg * Rate | B25: same with diff words | C25: Part = Base*Rate
A26: Rate = End/Beg | B26: same with diff words | C26: Rate = Part/Base
A27: Beg = End/Rate | B27: same with diff words | C27: Base = Part/Rate
A29: Example 1: Rate of Change / Increase Problem
A30: Last Year's Sales | B30: 500000 | C30: Beg
A31: This Year's Sales | B31: 550000 | C31: End
A32: Rate | B32: =B31/B30 -> 1.1 | C32: Rate | D32: Rate = End/Beg
A33: Rate Shown as a % | B33: =B32 -> 1.1 | C33: Rate
A34: Amount of Change | B34: =B31-B30 -> 50000 | C34: AOC | D34: AOC = End - Beg | E34: Notice: Because # is positive, we went up (increase)
A35: Rate of Change | B35: =B34/B30 -> 0.1 | C35: ROC | D35: (End - Beg)/Beg
A36: ROC as a % | B36: =B35 -> 0.1
A37: Rate of Change | B37: =B31/B30-1 -> 0.1 | C37: ROC | D37: End/Beg - 1 | E37: **Formula is often used in Finance and Statistics
A38: Rate of Change | B38: =B32-1 -> 0.1 | D38: Rate - 1
A40: Drawing Pictures is GOOD!!!
B42: End | C42: AOC | D42: Rate | E42: ROC
B43: =B31 -> 550000 | C43: =B34 -> 50000 | D43: =B33 -> 1.1 | E43: =B36 -> 0.1
C44: Beg | E44: Beg Rate
C45: =B30 -> 500000 | E45: 1
B49: Beg + AOC Always = End | E49: Rate Always = 100% + ROC
B50: or | E50: or
B51: End = Beg + AOC | E51: Rate = 1 + ROC
A53: Try it: | B53: =1+B36 -> 1.1 | C53: Rate = 1 + ROC
B54: =1+B35 -> 1.1
A55: Example 2: Rate of Change / Decrease Problem
A56: Last Year's Sales | B56: 500000 | C56: Beg | D56: Base | E56: Check End:
A57: This Year's Sales | B57: 450000 | C57: End | D57: Part | E57: =B56*B58 -> 450000
A58: Rate | B58: =B57/B56 -> 0.9 | C58: End/Beg | D58: Part/Base | E58: =B56*B59 -> 450000
A59: Rate as a % | B59: =B58 -> 0.9
A60: Amount of Change | B60: =B57-B56 -> -50000 | C60: End - Beg | E60: Notice because # is negative, we went down (decrease)
A61: Rate of Change | B61: =B60/B56 -> -0.1 | C61: (End-Beg)/Beg | D61: AOC/Beg
A62: ROC as a % | B62: =B61 -> -0.1
A63: Rate of Change | B63: =B57/B56-1 -> -0.1 | C63: End/Beg -1
A64: Rate of Change | B64: =B58-1 -> -0.1 | C64: Rate - 1
A66: Drawing Pictures is GOOD!!!
B68: Beg | C68: AOC | D68: Base Rate | E68: ROC
B69: =B56 -> 500000 | C69: =B60 -> -50000 | D69: 1 | E69: =B62 -> -0.1
C70: End | E70: Rate
C71: =B57 -> 450000 | E71: =B59 -> 0.9
A72: Check End =
A73: =B56+B60 -> 450000 | G73: Check Rate:
G74: =1+E69 -> 0.9
B75: Beg + AOC Always = End | E75: Rate Always = 100% + ROC
A77: Try it: | B77: =1+B61 -> 0.9 | C77: Rate = 1 + ROC | E77: **Works for either Increase or Decrease
A79: Calculating End
A80: Method 1
A81: Last Year's Sales | B81: 500000 | C81: Beg | D81: Base
A82: Rate of Change | B82: 0.1 | C82: ROC
A83: Amount of Change | B83: =B82*B81 -> 50000 | C83: AOC | D83: AOC = Beg * ROC
A84: This Year's Sales | B84: =B83+B81 -> 550000 | C84: End | D84: End = Beg + AOC
A85: Method 2
A86: Last Year's Sales | B86: 500000 | C86: Beg
A87: Rate of Change | B87: 0.1 | C87: ROC
A88: Rate | B88: =1+B87 -> 1.1 | C88: 1 + ROC
A89: This Year's Sales | B89: =B86*B88 -> 550000 | C89: End | D89: Beg*Rate
A90: Method 3
A91: Last Year's Sales | B91: 500000 | C91: Beg
A92: Rate of Change | B92: 0.1 | C92: ROC
A93: This Year's Sales | B93: =B91*(1+B92) -> 550000 | C93: End | D93: End = Beg * (1+ROC)
A95: Method 3
A96: Last Year's Sales | B96: 500000 | C96: Beg
A97: Rate of Change | B97: -0.1 | C97: ROC
A98: This Year's Sales | B98: =B96*(1+B97) -> 450000 | C98: End | D98: End = Beg * (1+ROC)

Sheet Summary of Formulas
B1: Sections 3.2, 3.3, 3.4 | F1: Section 3.5
A2: Older Terms: | B2: Solving For: | C2: Older Formulas: | E2: New Terms: | F2: Solving For: | G2: Formulas You Can Use
B3: Part | C3: Base*Rate | F3: End | G3: Beg*Rate | H3: Beg*(1 + ROC) | I3: Beg + AOC
B4: Rate | C4: Part/Base | F4: Beg | G4: End/Rate | H4: AOC/ROC | I4: End - AOC
B5: Base | C5: Part/Rate | F5: Rate | G5: End/Beg | H5: Rate = 1 + ROC
B6: Amount of change **can be negative or positive | C6: Part - Base | F6: AOC | G6: End - Beg | H6: Beg*ROC
B7: Rate Of Change | C7: (Part - Base)/Base | F7: ROC | G7: (End - Beg)/Beg | H7: End/Beg - 1 | I7: Rate - 1
B9: List of formulas from Previous Sheet
B10: End = Beg*Rate
B11: Rate = End/Beg
B12: Beg = End/Rate
B13: AOC = End - Beg
B14: ROC = (End - Beg)/Beg
B15: End = Beg + AOC
B16: Rate = 1 + ROC
B17: AOC = Beg*ROC
B18: End = Beg + AOC
B19: End = Beg*(1+ROC)
B20: ROC = Rate - 1
B21: ROC = End/Beg - 1

Sheet IncreaseDecreaseProblems
A1: After spending $3450 for tuition and $4350 for dorm fees, Edgar finds that 35% of his original savings remains. Find the amount of his savings that remain.
A2: Step 1: List Variables and details
A9: Step 2: Set up and Solve
A19: Step 3: Write Answer in Words
A23: The value of Iowa farmland increased 4.3% this year to a statewide average value of $1857 per acre. How much per acre did the Iowa farmland increase this year (Round to the dollar).
A25: Step 1: List Variables and details
A32: Step 2: Set up and Solve
A40: Step 3: Write Answer in Words
A43: Markdown
A44: original price of the Lego set
A45: Markdown
A46: Reduced Price
A47: original price of the Lego set
A48: Markdown
A49: Reduced Price
A50: Markup
A51: original price for generator before Seattle storm
A52: Markup
A53: New Price

Sheet IncreaseDecreaseProblems (an)
A1: After spending $3450 for tuition and $4350 for dorm fees, Edgar finds that 35% of his original savings remains. Find the amount of his savings that remain.
A2: Step 1: List Variables and details
A3: Part 1: Amount spent of Tuition = | B3: 3450 | D3: Beg | E3: AOC | F3: Base Rate | G3: ROC
A4: Part 2: Amount spent of Dorm Fees = | B4: 4350 | D4: Original Savings | E4: Amount | F4: 1 | G4: =B15 -> -0.65
A5: Rate = % Savings Remain | B5: 0.35 | D5: =B16 -> 12000 | E5: Spent
A6: End = Savings remaning | B6: ?? | E6: =B13 -> -7800
A7: Beg = Original Savings | B7: ??
A8: Goal: Find savings that remain | E8: End | G8: Rate
A9: Step 2: Set up and Solve | E9: Savings Remain | G9: =B5 -> 0.35
A10: =A3 -> Part 1: Amount spent of Tuition = | B10: =B3 -> 3450 | E10: =B17 -> 4200
A11: =A4 -> Part 2: Amount spent of Dorm Fees = | B11: =B4 -> 4350
A12: Total Spent | B12: =SUM(B10:B11) -> 7800 | D12: Check: | E12: Beg = End/Rate
A13: AOC = Amount Spent | B13: =-B12 -> -7800 | D13: Beg
A14: =A5 -> Rate = % Savings Remain | B14: =B5 -> 0.35 | D14: =B17/B14 -> 12000
A15: ROC | B15: =B14-1 -> -0.65 | C15: Rate -1
A16: =A7 -> Beg = Original Savings | B16: =B13/B15 -> 12000 | E16: Beg = AOC/ROC
A17: =A6 -> End = Savings remaning | B17: =B16+B13 -> 4200
A19: Step 3: Write Answer in Words
A20: The savings that remain are $4,200.
A21: =IF(A20<>"","End of Section 3.5","") -> End of Section 3.5
A23: The value of Iowa farmland increased 4.3% this year to a statewide average value of $1857 per acre. How much per acre did the Iowa farmland increase this year (Round to the dollar).
A25: Step 1: List Variables and details
A26: ROC = amount of value increase in land = | B26: 0.043 | D26: End | E26: AOC | F26: Rate | G26: ROC
A27: End = End value in land | B27: 1857 | D27: =B27 -> 1857 | F27: =B33 -> 1.043 | G27: =B26 -> 0.043
A28: Goal: Amount of land value increase | B28: ?? | E28: Beg | G28: Base Rate
A29: Requirement: Round to the dollar | E29: =B36 -> 1780 | G29: 1
A32: Step 2: Set up and Solve
A33: Rate | B33: =1+B26 -> 1.043 | C33: Rate = 1 + ROC | E33: Check:
A34: =A27 -> End = End value in land | B34: =B27 -> 1857 | E34: ROC | F34: AOC/Beg
A35: Beg = Value of land at start of year | B35: =B34/B33 -> 1780.441035 | C35: Beg = End/Rate | E35: =B37/B36 -> 0.04325842697 | F35: used rounded answer
A36: =A35 -> Beg = Value of land at start of year | B36: =ROUND(B35,0) -> 1780 | C36: Round - 0 | E36: =B34/B35-1 -> 0.043 | F36: End/Beg-1
A37: AOC = Change in value of land | B37: =B34-B36 -> 77 | C37: End - Beg
A40: Step 3: Write Answer in Words
A41: On average the Iowa farmland increased by an amount of $77.
A43: Markdown
A44: original price of the Lego set | B44: 10.5 | C44: Beg
A45: Markdown | B45: -0.1 | C45: ROC
A46: Reduced Price | B46: =B44*(1+B45) -> 9.45 | C46: End = Beg *(1+ROC)
A47: original price of the Lego set | B47: 10.5 | D47: Rate = 1+ ROC
A48: Markdown | B48: 0.1
A49: Reduced Price | B49: =B47*(1-B48) -> 9.45
A50: Markup
A51: original price for generator before Seattle storm | B51: 600
A52: Markup | B52: 0.2
A53: New Price | B53: =B51*(1+B52) -> 720 | C53: End = Beg *(1+ROC)

Sheet Stocks
A1: My Stocks
A2: Company Name | B2: Stock Symbol | C2: March 1, 2007 Price | D2: Current Price | E2: Rate of Change or % Over Period | G2: Check
A3: Amazom.com | B3: AMZN | C3: 38.85
A4: Krispy Kreme | B4: KKD | C4: 10.25
A5: McDonald's | B5: MCD | C5: 44.1
A6: Merck | B6: MRK | C6: 43.99
A7: Citigroup | B7: C | C7: 51.08
A8: Microsoft | B8: MSFT | C8: 28.09
A9: Bank of America | B9: BAC | C9: 50.38
A10: Wal-Mart | B10: WMT | C10: 47.89
A11: Yahoo | B11: YHOO | C11: 30.86

Sheet Stocks (an)
A1: My Stocks
A2: Company Name | B2: Stock Symbol | C2: March 1, 2007 Price | D2: Current Price | E2: Rate of Change or % Over Period | G2: Check
A3: Amazom.com | B3: AMZN | C3: 38.85 | D3: =D17 -> 234.78 | E3: =D3/C3-1 -> 5.043243243 | G3: =(D3-C3)/C3 -> 5.043243243
A4: Krispy Kreme | B4: KKD | C4: 10.25 | D4: =D18 -> 6.8 | E4: =D4/C4-1 -> -0.3365853659 | G4: =(D4-C4)/C4 -> -0.3365853659
A5: McDonald's | B5: MCD | C5: 44.1 | D5: 92.32 | E5: 1.093424036 | G5: 1.093424036
A6: Merck | B6: MRK | C6: 43.99 | D6: 33.35 | E6: -0.241873153 | G6: -0.241873153
A7: Citigroup | B7: C | C7: 51.08 | D7: 30.3 | E7: -0.4068128426 | G7: -0.4068128426
A8: Microsoft | B8: MSFT | C8: 28.09 | D8: 27.16 | E8: -0.03310786757 | G8: -0.03310786757
A9: Bank of America | B9: BAC | C9: 50.38 | D9: 6.46 | E9: -0.8717745137 | G9: -0.8717745137
A10: Wal-Mart | B10: WMT | C10: 47.89 | D10: 56.92 | E10: 0.18855711 | G10: 0.18855711
A11: Yahoo | B11: YHOO | C11: 30.86 | D11: 16.12 | E11: -0.4776409592 | G11: -0.4776409592
A14: Stock Quotes Provided by MSN Money
A15: Click here to visit MSN Money
D16: Last | E16: Previous Close | F16: High | G16: Low | H16: Volume | I16: Change | J16: % Change | K16: 52 Wk High | L16: 52 Wk Low | M16: Market Cap | N16: EPS | O16: P/E Ratio | P16: # Shares Out
A17: Amazon.com Inc | B17: Chart | C17: News | D17: 234.78 | E17: 233.61 | F17: 237 | G17: 230.6 | H17: 4572980 | I17: 1.17 | J17: 0.005 | K17: 246.71 | L17: 156.77 | M17: 106574929180 | N17: 2.27 | O17: 103.5 | P17: 453935300
A18: Krispy Kreme Doughnuts Inc | B18: Chart | C18: News | D18: 6.8 | E18: 6.66 | F18: 6.85 | G18: 6.68 | H18: 453668 | I18: 0.14 | J18: 0.021 | K18: 10.08 | L18: 5.1 | M18: 461937817 | N18: 0.26 | O18: 25.7 | P18: 67932030
A19: McDonald's Corp | B19: Chart | C19: News | D19: 92.32 | E19: 89.01 | F19: 92.45 | G19: 91.09 | H19: 12082754 | I19: 3.31 | J19: 0.0372 | K19: 92.45 | L19: 72.14 | M19: 95251344325 | N19: 5.1 | O19: 18.1 | P19: 1031752000
A20: Merck & Co Inc | B20: Chart | C20: News | D20: 33.35 | E20: 32.8 | F20: 33.42 | G20: 33.09 | H20: 17960955 | I20: 0.55 | J20: 0.0168 | K20: 37.68 | L20: 29.47 | M20: 102744575249 | N20: 1.38 | O20: 24.2 | P20: 3080797000
A21: Citigroup Inc | B21: Chart | C21: News | D21: 30.3 | E21: 30.08 | F21: 30.7 | G21: 29.69 | H21: 68536080 | I21: 0.22 | J21: 0.0073 | K21: 51.5 | L21: 21.4 | M21: 88413852474 | N21: 3.75 | O21: 8.2 | P21: 2917949000
A22: Microsoft Corp | B22: Chart | C22: News | D22: 27.16 | E22: 27.04 | F22: 27.19 | G22: 26.8 | H22: 76620533 | I22: 0.12 | J22: 0.0044 | K22: 29.46 | L22: 23.65 | M22: 228474888996 | N22: 2.75 | O22: 9.9 | P22: 8412183000
A23: Bank of America Corp | B23: Chart | C23: News | D23: 6.46 | E23: 6.47 | F23: 6.65 | G23: 6.38 | H23: 252586372 | I23: -0.01 | J23: -0.0015 | K23: 15.31 | L23: 5.13 | M23: 65535085387 | N23: -0.33 | O23: 0 | P23: 10144750000
A24: Wal-Mart Stores Inc | B24: Chart | C24: News | D24: 56.92 | E24: 56.37 | F24: 57.42 | G24: 56.65 | H24: 14498890 | I24: 0.55 | J24: 0.0098 | K24: 57.9 | L24: 48.31 | M24: 196182571729 | N24: 4.7 | O24: 12.9 | P24: 3446637000
A25: Yahoo! Inc | B25: Chart | C25: News | D25: 16.12 | E25: 16.18 | F25: 16.39 | G25: 16.06 | H25: 29739367 | I25: -0.06 | J25: -0.0037 | K25: 18.84 | L25: 11.09 | M25: 20353306500 | N25: 0.82 | O25: 19.7 | P25: 1262612000
A27: Symbol Lookup | C27: MSN Money Home | G27: Microsoft Office Tools on the Web
A28: Find stocks, mutual funds, options, indices, and currencies. | C28: Discover MSN Money's tools, columns, and more! | G28: Get the latest from Microsoft Office
A30: Terms of Use. © 2011 Microsoft Corporation and/or its suppliers. All rights reserved.

Sheet Memory Trick
A1: If your percentage grade on a 200 point test was 91%, how many points did you get on the test?
A6: If you got 182 points on the 200 point final test in your accounting class, what was your percentage grade?
A11: If your percentage grade in your international business class was 75% and your score on the test was 225, what was the maximum number of points possible on the test?
A16: If your business made $125,000 this year and this year's sales were 25% increased over last year's sales, what were last year's sales?

Sheet Memory Trick (an)
A1: If your percentage grade on a 200 point test was 91%, how many points did you get on the test?
A2: Rate | B2: 0.91
A3: Base | B3: 200
A4: Your Points | B4: =B3*B2 -> 182 | C4: Part | D4: B*R
A6: If you got 182 points on the 200 point final test in your accounting class, what was your percentage grade?
A7: Your Points | B7: 182 | C7: Part
A8: Base | B8: 200
A9: % Grade | B9: =B7/B8 -> 0.91 | C9: Rate | D9: P/B
A11: If your percentage grade in your international business class was 75% and your score on the test was 225, what was the maximum number of points possible on the test?
A12: % Grade | B12: 0.75 | C12: Rate
A13: Your Score | B13: 225 | C13: Part
A14: Max Points | B14: =B13/B12 -> 300 | C14: Base | D14: P/R
A16: If your business made $125,000 this year and this year's sales were 25% increased over last year's sales, what were last year's sales?
A17: ROC | B17: 0.25
A18: Rate | B18: =1+B17 -> 1.25
A19: This Years | B19: 125000 | C19: End
A20: Last Year's Sales | B20: =B19/B18 -> 100000 | C20: Beg

Sheet HW 3.5==>>
A1: 3.5 | B1: ='(3,7)'!A1&", "&'(3,7)'!A14&", "&'(13)'!A1&", "&'(14)'!A1&", "&'(17)'!A1&", "&'(25)'!A1&", "&'(26)'!A1&", "&'(34)'!A1 -> 3, 7, 13, 14, 17, 25, 26, 28

Sheet (3,7)
A1: 3
A2: End = Part | B2: End = Part after increase | C2: 30.7 | F2: End = Part After Increase 30.7 | G2: Amount of Change | H2: Rate of Change (Increase) + 10% | I2: Rate = 100% + 10%
A3: AOC | B3: Amount of Change | C3: ??
A4: ROC | B4: Rate of Change (Increase) | C4: 0.1 | G4: Base | H4: Beg = Base = 100%
A5: Beg = Base | B5: Beg = Part Before increase | C5: ??
A6: Rate | B6: Rate | C6: ??
A7: Requirement: Round To Cent
B9: =B6 -> Rate | C9: =C4+1 -> 1.1 | D9: R = 100% + ROC
A10: =A5 -> Beg = Base | B10: =B5 -> Beg = Part Before increase | C10: =ROUND(C2/C9,2) -> 27.91 | D10: B = End P/R | F10: Rounded
B11: Check | C11: =(C2-C10)/C4 -> 27.9 | D11: Beg = AOC/ROC | F11: Not Rounded
A14: 7
A15: End Part | B15: End Part after decrease | C15: 598.15 | D15: End | F15: Beg = Base | G15: Amount of Change | H15: Beg = Base = 100% | I15: Rate of Change (Decrease) -30%
A16: Rate | B16: Rate of Decrease | C16: -0.3
A17: Beg = Base | B17: Beg = Amount before decrease | D17: Beg | G17: End = Part after Decrease | I17: Rate = 100% -30%
A18: Requirement: Round To Cent
B20: Rate | C20: =1+C16 -> 0.7 | D20: R = 100% + ROC
A21: =A17 -> Beg = Base | B21: =B17 -> Beg = Amount before decrease | C21: =ROUND(C15/C20,2) -> 854.5 | D21: B = End P/R
B22: Check | C22: =(C21-C15)/-C16 -> 854.5 | D22: Beg = AOC/ROC

Sheet (13)
A1: 13
A2: Step 1:
A3: ROC | B3: Sales Tax Rate (Rate of change above sales) | C3: 0.08
A4: AOC | B4: Sales Tax Amount | C4: ?? | G4: End Part = Sales + Tax Total Amount = $1,026 | I4: Amount of Tax $ | J4: ROC = Tax Rate = 8% | K4: Rate = 100% + 8% = 108%
A5: Rate | B5: Rate = ROC + 1 | C5: =1+C3 -> 1.08 | D5: Sales % + Sales Tax %
A6: Beg = Base | B6: Sales Amount Before Tax | C6: ?? | D6: Formula = P/R | I6: Beg = Sales Amount | J6: Sales = 100%
A7: End = Part | B7: Sales Amount + Tax Amount | C7: 1026
A8: Goal 1: Find Sales Amount Before Tax, and Find the
A9: Goal 2: Find the Amount of Sales Tax
A10: Round to Penny because this is money
A12: Step 2:
A13: =A5 -> Rate | B13: =B5 -> Rate = ROC + 1 | C13: =C5 -> 1.08 | D13: Sales % + Sales Tax %
A14: =A7 -> End = Part | B14: =B7 -> Sales Amount + Tax Amount | C14: =C7 -> 1026
A15: =A6 -> Beg = Base | B15: =B6 -> Sales Amount Before Tax | C15: =ROUND(C14/C13,2) -> 950 | D15: End P/R
A16: =A4 -> AOC | B16: Sales Tax Amount | C16: =ROUND(C14-C15,2) -> 76 | D16: subtract
A18: Check | B18: =B15 -> Sales Amount Before Tax | C18: =ROUND(C16/C3,2) -> 950 | D18: Beg = AOC/ROC
A19: Check | B19: =B16 -> Sales Tax Amount | C19: =ROUND(C15*C3,2) -> 76 | D19: Beg B*ROC
A21: Step 3:
A22: The amount of the original sales was $950 and the tax paid was $76.

Sheet (14)
A1: 14
A2: Step 1:
A3: Total Including Price and sales Tax | B3: 317.37 | C3: End
A4: Tax Rate | B4: =(6+1/2)/100 -> 0.065 | C4: ROC
A5: Price of GPS (amount) | B5: ?? | C5: Beg
A6: Sales Tax (Amount) | B6: ?? | C6: AOC | E6: At beginning of problem:
A7: Goal: Find Price of GPS (amount) and Sales Tax (Amount) | E7: End | F7: AOC | G7: Rate | H7: ROC
E8: =B3 -> 317.37 | H8: =B4 -> 0.065
A9: Step 2:
A10: =A4 -> Tax Rate | B10: =B4 -> 0.065 | F10: Beg | H10: Beg Rate
A11: Rate (Rate Times Beg that yields End) | B11: =1+B10 -> 1.065 | C11: 1 + ROC | H11: 1
A12: =A3 -> Total Including Price and sales Tax | B12: =B3 -> 317.37 | C12: =C3 -> End
A13: =A5 -> Price of GPS (amount) | B13: =B12/B11 -> 298 | C13: Beg = End/Rate
A14: =A6 -> Sales Tax (Amount) | B14: =B12-B13 -> 19.37 | C14: AOC = End - AOC
A15: Check 1: ROC | B15: =B14/B13 -> 0.065 | C15: ROC = AOC/Beg
A16: Check 2: End | B16: =B13*B11 -> 317.37 | C16: End = Beg*Rate | E16: At End of Problem:
A17: Step 3: | E17: End | F17: AOC | G17: Rate | H17: ROC
A18: The price of the GPS was $600 and the sales tax was $39. | E18: Total | F18: Sales Tax | G18: =B11 -> 1.065 | H18: =B4 -> 0.065
E19: =B3 -> 317.37 | F19: =B14 -> 19.37
F20: Beg | H20: Beg Rate
F21: Price | H21: 1
F22: =B13 -> 298

Sheet (17)
A1: 17
A2: Step 1:
A3: Inflation in food prices | B3: 0.1 | C3: ROC | D3: 1 year increase | G3: End | H3: AOC | J3: End | K3: AOC
A4: Important point: the same ROC happened over last two years | G4: =B6 -> 80 | H4: =G4-H6 -> 7.27 | J4: =H6 -> 72.73 | K4: =J4-K6 -> 6.61
A5: Key Concept: Time for ROC is 1 year, but problem asks for what price was two years ago! | H5: Beg | I5: Then 2nd time ==>> | K5: Beg
A6: Cost of Food Today | B6: 80 | H6: =B15 -> 72.73 | K6: =B17 -> 66.12
A7: Goal: what price was the food two years ago
A8: Requirement: Round each step in the problem to the penny
A9: Key calculating trick: Use the formula 2 times in a row.
A10: Step 2:
A11: =A3 -> Inflation in food prices | B11: =B3 -> 0.1 | C11: =C3 -> ROC | E11: Check: | G11: Check:
A12: Rate | B12: =1+B11 -> 1.1 | C12: Rate = 1 + ROC | E12: =B16*B12^2 -> 80.003 | G12: =B13/B12^2 -> 66.11570248 | H12: without round each time
A13: =A6 -> Cost of Food Today | B13: =B6 -> 80
A14: Price of food 1 year ago | B14: =B13/B12 -> 72.72727273 | C14: Not Rounded | D14: Beg = End/Rate | F14: 1st time using formula
A15: Price of food 1 year ago | B15: =ROUND(B14,2) -> 72.73 | C15: Rounded
A16: Price of food 2 year ago | B16: =B15/B12 -> 66.11818182 | C16: Not Rounded | D16: Beg = End/Rate | F16: 2nd time using formula
A17: Price of food 2 year ago | B17: =ROUND(B16,2) -> 66.12 | C17: Rounded
A19: Step 3:
A20: The price of the basket of food two years ago was $66.12.

Sheet (25)
A1: 25
A2: Step 1: | J2: Beg = Sales before drop | K2: AOC = Amount of drop | L2: ROC = -16%
A3: ROC | B3: % drop in earnings | C3: -0.16 | D3: enter as a negative
A4: End = Part | B4: Amount of earnings after drop | C4: 122 | D4: millions | K4: End Part = Sales at end = $122. M. | L4: Rate = 1 - 16% = 84%
A5: Rate | B5: Rate = 1 + -ROC | C5: =1+C3 -> 0.84 | D5: Number multiplied by Beg (original) to get end amount
A6: Goal: Find earnings before drop (beg amount)
A7: Round to the nearest ten-thousands - because in millions, use ROUND with a 2.
A9: Step 2:
A10: =A4 -> End = Part | B10: =B4 -> Amount of earnings after drop | C10: =C4 -> 122 | D10: millions
A11: =A5 -> Rate | B11: Rate = 1 + -ROC | C11: =C5 -> 0.84 | D11: Number multiplied by Beg (original) to get end amount | J11: End Part and Rate can be used in division
A12: Beg | B12: Find earnings before drop (beg amount) | C12: =ROUND(C10/C11,2) -> 145.24 | D12: End P/R
B13: Check | C13: =C12*C11 -> 122.0016 | D13: Beg B*R
A15: Step 3:
A16: The earnings before drop were $145.24 million.

Sheet (26)
A1: 26
A2: Step 1:
A3: Decrease in # units sold for year | B3: -0.023 | C3: decrease | D3: ROC
A4: End = # Units Sold For Year | B4: 4.87 | C4: million | D4: End
A5: # Units sold before dcrease | C5: million | D5: Beg
A6: Goal: Calculate # Units sold before dcrease
A7: Requirement: Round to nearest hundredth of a million | C7: Because it is already shown in units of a million, this means: 4.87 round the the hundedth position
E8: Drawing at beginning of problem
A9: Step 2: | E9: Beg | F9: AOC | G9: 1 | H9: ROC
A10: =A3 -> Decrease in # units sold for year | B10: =B3 -> -0.023 | C10: =D3 -> ROC | H10: =B3 -> -0.023
A11: Rate | B11: =1+B10 -> 0.977 | C11: Rate = 1 + ROC
A12: =A4 -> End = # Units Sold For Year | B12: =B4 -> 4.87 | F12: End | H12: Rate
A13: =A5 -> # Units sold before dcrease | B13: =B12/B11 -> 4.984646878 | C13: Beg = End/Rate | F13: =B4 -> 4.87
A14: =A13 -> # Units sold before dcrease | B14: =ROUND(B13,2) -> 4.98 | C14: Rounded
A15: Check: | B15: =B13*B11 -> 4.87 | C15: End = Beg * Rate
A17: Step 3:
A18: The number of units sold before the recession was 4.98 million | E18: Drawing at end of problem
E19: Beg | F19: AOC | G19: 1 | H19: ROC
E20: =ROUND(F23/H23,2) -> 4.98 | F20: =F23-E20 -> -0.11 | H20: =H10 -> -0.023
F22: End | H22: Rate
F23: =F13 -> 4.87 | H23: =G19+H20 -> 0.977

Sheet (34)
A1: 28
A2: Step 1:
A3: Decrease in stock value | B3: -0.074 | C3: ROC | D3: Beg | E3: AOC | F3: Base Rate | G3: ROC
A4: End Stock Value | B4: 46.25 | C4: End | D4: =E7/(1+G4) -> 49.94600432 | E4: =E7-D4 -> -3.69600432 | F4: 1 | G4: =B3 -> -0.074
A5: Beg Stock Value | C5: Beg
A6: Goal: calculate beginning stock value | E6: End | G6: End
A7: Requiremnet: Round to the penny | E7: =B4 -> 46.25 | G7: =F4+G4 -> 0.926
A9: Step 2:
A10: =A3 -> Decrease in stock value | B10: =B3 -> -0.074 | C10: =C3 -> ROC
A11: Rate | B11: =1+B10 -> 0.926 | C11: Rate = 1 = ROC
A12: =A4 -> End Stock Value | B12: =B4 -> 46.25
A13: Beg Stock Value | B13: =B12/B11 -> 49.94600432 | C13: Not rounded
A14: =A5 -> Beg Stock Value | B14: =ROUND(B13,2) -> 49.95 | C14: Rounded | D14: Beg = End/Rate
A15: Check | B15: =B13*B11 -> 46.25 | C15: End = Beg*Rate
A17: Step 3:
A18: The begin stock value was $15.52
